bitfinex/quotes_ETHUSD_20250329
["timestamp","ask_amount","ask_price","bid_price","bid_amount"]
[1743253817569,2.99048996,1861.8,1861.6,10.74322]
[1743253817769,2.99048996,1861.8,1861.7,5.37143]
[1743253818374,3.02958996,1861.8,1861.6,5.37151]
[1743253818591,3.02958996,1861.8,1861.3,6.15963]
[1743253818592,8.36208996,1861.7,1861.3,6.15963]
[1743253818803,2.99048996,1861.4,1861.2,5.37269]
[1743253818973,5.41093,1861.6,1861.3,5.225]
[1743253818974,2.99048996,1861.5,1861.3,5.225]
[1743253819501,2.99048996,1861.5,1861.3,10.59748]
[1743253819804,3.02958996,1861.6,1861.3,10.59739]
[1743253820002,3.02958996,1861.6,1861.4,5.37219]
[1743253820209,3.02958996,1861.6,1861.4,5.3721]
[1743253820707,2.99048996,1861.5,1861.3,10.59758]
[1743253821698,0.15443403,1861.4,1861.3,10.59758]
[1743253822817,3.02958996,1861.6,1861.4,5.37229]
[1743253823013,0.15463143,1861.5,1861.4,5.37229]
[1743253823382,3.14512139,1861.5,1861.3,5.37258]
[1743253823583,3.14512139,1861.5,1861.3,10.59758]
[1743253823783,3.14512139,1861.5,1861.3,5.225]
[1743253824383,2.99048996,1861.4,1861.3,5.225]
[1743253824605,3.14516591,1861.4,1861.3,5.225]
[1743253825094,0.15467595,1861.4,1861.3,5.225]
[1743253825644,0.15467595,1861.4,1861.3,10.59758]
[1743253826098,3.02958996,1861.6,1861.3,10.59758]
[1743253826310,0.15419212,1861.4,1861.3,10.59758]
[1743253826497,4.16969396,1861.6,1861.3,10.59758]
[1743253826498,3.02958996,1861.6,1861.3,10.59758]
[1743253826695,0.1543534,1861.4,1861.3,10.59758]
[1743253826900,2.99048996,1861.5,1861.3,10.59758]
[1743253827098,0.15427275,1861.4,1861.3,10.59758]
[1743253827307,0.15427275,1861.4,1861.3,5.225]
[1743253827499,3.14476271,1861.4,1861.0,1.074642]
[1743253827717,2.99048996,1861.2,1861.0,5.225]
[1743253828014,0.15294817,1861.1,1861.0,10.59844]
[1743253828201,3.02958996,1861.3,1861.0,10.59844]
[1743253828528,2.99048996,1861.1,1861.0,5.225]
[1743253828819,3.14370985,1861.1,1861.0,5.225]
[1743253829010,0.15321989,1861.1,1861.0,10.59845]
[1743253829381,3.14370985,1861.1,1861.0,5.225]
[1743253830414,0.15321989,1861.1,1861.0,11.38565]
[1743253830715,2.99048996,1861.3,1861.1,5.37309]
[1743253831021,2.99048996,1861.6,1861.4,5.37228]
[1743253831527,2.99048996,1861.6,1861.3,6.15956]
[1743253831703,2.99048996,1861.6,1861.4,5.37224]
[1743253832027,2.99048996,1861.5,1861.3,6.15956]
[1743253833116,2.99048996,1861.5,1861.2,5.37286]
[1743253833289,2.99048996,1861.4,1861.2,5.37286]
[1743253834298,2.99048996,1861.4,1861.2,10.74556]
[1743253834620,2.99048996,1861.5,1861.3,5.37258]
[1743253835900,2.99048996,1861.5,1861.1,6.17794]
[1743253835901,2.99048996,1861.4,1861.1,6.17794]
[1743253836206,2.99048996,1861.3,1861.2,5.37287]
[1743253836410,3.02958996,1861.4,1861.2,10.59787]
[1743253836608,3.02958996,1861.4,1861.2,10.59769]
[1743253836609,0.27716927,1861.3,1861.2,10.59769]
[1743253836812,2.99048996,1861.4,1861.2,15.97036]
[1743253836991,0.27716927,1861.3,1861.2,15.97036]
[1743253837332,2.99048996,1861.4,1861.2,5.225]
[1743253837539,0.27716927,1861.3,1861.2,5.225]
[1743253837840,2.99048996,1861.4,1861.2,5.225]
[1743253837995,0.27716927,1861.3,1861.2,5.225]
[1743253838195,2.99048996,1861.4,1861.2,5.225]
[1743253838499,0.27716927,1861.3,1861.2,5.225]
[1743253838824,2.99048996,1861.4,1861.2,5.225]
[1743253839022,0.27716927,1861.3,1861.2,5.225]
[1743253839335,2.99048996,1861.4,1861.2,5.225]
[1743253839560,0.27716927,1861.3,1861.2,5.225]
[1743253839827,2.99048996,1861.3,1861.2,5.225]
[1743253840032,3.26765923,1861.3,1861.1,5.225]
[1743253840617,3.26765923,1861.3,1861.1,10.59814]
[1743253841133,3.26765923,1861.3,1861.1,10.59796]
[1743253841134,0.27716927,1861.3,1861.1,10.59796]
[1743253841302,0.27716927,1861.3,1861.2,5.37287]
[1743253841510,2.99048996,1861.4,1861.2,5.37287]
[1743253841811,0.27743543,1861.3,1861.2,5.37273]
[1743253842134,3.02958996,1861.5,1861.2,10.74544]
[1743253842305,0.27743543,1861.3,1861.2,6.13997]
[1743253842509,2.99048996,1861.6,1861.3,5.37231]
[1743253842725,0.0391,1861.7,1861.5,5.37197]
[1743253842726,6.02958996,1861.7,1861.5,5.37197]
[1743253843232,6.02958996,1861.7,1861.4,5.37222]
[1743253843834,2.99048996,1861.6,1861.4,5.37222]
[1743253844873,8.36269996,1861.5,1861.1,11.78571579]
[1743253845043,8.36336996,1861.2,1860.8,6.14108]
[1743253845238,2.99048996,1861.0,1860.7,5.3742]
[1743253845433,2.99048996,1860.9,1860.8,10.59901]
[1743253846242,2.99048996,1860.9,1860.8,10.59801]
[1743253846444,0.0391,1860.8,1860.4,5.37496]
[1743253846666,0.0391,1860.8,1860.5,10.59877]
[1743253846667,2.99048996,1860.7,1860.5,10.59877]
[1743253846837,2.99048996,1860.7,1860.5,10.59874]
[1743253847356,2.99048996,1860.6,1860.5,10.59874]
[1743253847750,2.99048996,1860.6,1860.5,5.224]
[1743253848153,8.66431896,1860.6,1860.5,5.224]
[1743253848670,14.03919896,1860.6,1860.3,5.225]
[1743253848833,2.99048996,1860.4,1860.3,5.225]
[1743253849335,2.99048996,1860.4,1860.1,6.17763]
[1743253849533,2.99048996,1860.4,1860.2,5.225]
[1743253849763,3.02958996,1860.5,1860.2,10.60064]
[1743253849956,3.02958996,1860.7,1860.3,5.37544]
[1743253850161,3.02958996,1860.7,1860.4,5.37502]
[1743253850162,3.0,1860.6,1860.4,5.37502]
[1743253850862,5.99048996,1860.6,1860.4,5.37502]
[1743253851068,5.99048996,1860.6,1860.3,5.37544]
[1743253851366,5.99048996,1860.6,1860.3,5.37523]
[1743253851566,0.26605001,1860.5,1860.3,5.37523]
[1743253852268,0.26605001,1860.5,1860.3,10.75047]
[1743253852458,0.26605001,1860.5,1860.3,5.37523]
[1743253852767,0.26605001,1860.5,1860.3,10.75058]
[1743253853767,0.26605001,1860.5,1860.3,5.37523]
[1743253853967,0.26605001,1860.5,1860.4,5.37518]
[1743253854870,2.99048996,1860.7,1860.4,5.375]
[1743253855168,2.99048996,1860.7,1860.4,10.75002]
[1743253855343,2.99048996,1860.7,1860.5,5.37486]
[1743253855543,5.99048996,1860.8,1860.5,5.37486]
[1743253855870,5.99048996,1860.8,1860.4,6.1268]
[1743253855871,2.99048996,1860.7,1860.4,6.1268]
[1743253856067,8.37405,1860.8,1860.4,6.1268]
[1743253856068,2.99048996,1860.6,1860.4,6.1268]
[1743253856773,2.99048996,1860.6,1860.4,0.7518]
[1743253857074,2.99048996,1860.6,1860.3,5.37541]
[1743253857236,2.99048996,1860.6,1860.3,10.75068]
[1743253857975,0.0391,1861.1,1860.8,5.37388]
[1743253858147,3.02958996,1861.1,1860.9,5.37363]
[1743253858355,2.99048996,1861.1,1860.9,5.37362]
[1743253858744,2.99048996,1861.1,1860.9,10.74717]
[1743253859352,5.99048996,1861.2,1861.0,5.37345]
[1743253859981,5.37179,1861.6,1861.1,5.37316]
[1743253860148,5.99048996,1861.5,1861.2,15.97043]
[1743253860461,5.99048996,1861.5,1861.2,10.59769]
[1743253860836,3.0,1861.5,1861.2,10.59769]
[1743253861073,3.0,1861.5,1861.2,5.225]
[1743253861074,3.0,1861.3,1861.2,5.225]
[1743253861277,5.99048996,1861.3,1861.2,5.225]
[1743253863948,2.99048996,1861.4,1861.2,10.59775]
[1743253864875,5.99048996,1861.5,1861.3,5.3725]
[1743253865276,5.37114,1861.8,1861.4,5.37225]
[1743253865578,3.0,1861.7,1861.5,5.37189]
[1743253866087,0.41386053,1862.1,1861.8,5.371]
[1743253866278,8.36067996,1862.2,1861.9,5.37073]
[1743253866279,2.99048996,1862.2,1861.9,5.37073]
[1743253866473,3.82651596,1862.2,1861.9,5.37073]
[1743253866675,0.25953251,1862.1,1861.9,5.37073]
[1743253866876,0.25953251,1862.1,1862.0,10.59456]
[1743253867172,3.25985057,1862.1,1862.0,5.224]
[1743253867349,3.25985057,1862.1,1862.0,10.59456]
[1743253867962,0.25985057,1862.1,1862.0,10.59456]
[1743253868164,3.27081856,1862.7,1862.0,5.224]
[1743253868165,2.99048996,1862.2,1862.0,5.224]
[1743253868472,0.26551694,1862.1,1862.0,10.59456]
[1743253868677,0.26551694,1862.1,1862.0,5.224]
[1743253868877,2.99048996,1862.2,1862.0,10.59455]
[1743253869075,0.26551694,1862.1,1862.0,10.59455]
[1743253869479,2.99048996,1862.2,1862.0,10.59455]
[1743253869669,0.26551694,1862.1,1862.0,10.59455]
[1743253869870,0.26551694,1862.1,1862.0,5.224]
[1743253870049,3.0,1862.1,1862.0,5.224]
[1743253870244,3.26551694,1862.1,1862.0,5.224]
[1743253870680,3.26551694,1862.1,1861.7,6.15788]
[1743253870882,11.6263069,1862.1,1861.8,5.223]
[1743253871178,8.36108996,1862.0,1861.8,5.223]
[1743253871359,3.2553048,1861.9,1861.8,5.223]
[1743253871561,0.26481484,1861.9,1861.8,5.223]
[1743253872661,0.26481484,1861.9,1861.8,10.59414]
[1743253873180,5.99048996,1862.1,1861.8,10.59414]
[1743253873349,0.2654034,1862.0,1861.8,10.59414]
[1743253874563,3.25589336,1862.0,1861.8,5.223]
[1743253875387,2.99048996,1861.9,1861.8,5.223]
[1743253875593,5.37119,1861.8,1861.4,5.37206]
[1743253875883,3.25504763,1861.7,1861.5,5.222]
[1743253876085,0.26455767,1861.7,1861.5,10.59388]
[1743253876477,0.26455767,1861.7,1861.5,5.222]
[1743253876879,0.26455767,1861.7,1861.5,10.5939]
[1743253878365,0.26455767,1861.7,1861.5,15.96578]
[1743253878585,0.26455767,1861.7,1861.5,10.59388]
[1743253880916,0.26455767,1861.7,1861.5,12.190496]
[1743253882726,3.25504763,1861.7,1861.5,12.190496]
[1743253883091,3.25504763,1861.7,1861.5,17.562366]
[1743253884020,3.25504763,1861.7,1861.5,12.190486]
[1743253884220,3.25504763,1861.7,1861.5,10.59384]
[1743253884426,0.26455767,1861.7,1861.6,5.37172]
[1743253884632,0.26455767,1861.7,1861.6,6.2536323]
[1743253884791,2.99048996,1862.0,1861.8,5.37096]
[1743253884986,8.37045,1862.1,1861.7,5.37142]
[1743253885231,2.99048996,1861.8,1861.7,5.37142]
[1743253885432,2.99048996,1861.8,1861.7,5.991382]
[1743253885629,2.99048996,1861.8,1861.7,0.619962]
[1743253885803,2.99048996,1861.8,1861.5,10.59383]
[1743253885998,2.99048996,1861.6,1861.5,5.222]
[1743253886537,2.99048996,1861.7,1861.5,10.59385]
[1743253889210,2.99048996,1861.7,1861.5,15.96568]
[1743253889512,2.99048996,1861.7,1861.6,5.37172]
[1743253889712,2.99048996,1861.8,1861.6,5.37172]
[1743253890422,5.78074055,1861.9,1861.6,5.37172]
[1743253890423,2.99048996,1861.7,1861.6,5.37172]
[1743253893720,2.99048996,1861.7,1861.5,10.59383]
[1743253894332,2.99048996,1861.7,1861.5,10.59381]
[1743253895197,2.99048996,1861.7,1861.5,15.96568]
[1743253895615,2.99048996,1861.6,1861.5,5.222]
[1743253896609,3.25276989,1861.6,1861.5,5.222]
[1743253899130,0.26227993,1861.6,1861.5,10.59401]
[1743253899430,0.26227993,1861.6,1861.5,15.96584]
[1743253899431,0.26212198,1861.6,1861.5,15.96584]
[1743253899730,2.99048996,1861.7,1861.5,10.59383]
[1743253899911,0.26212198,1861.6,1861.5,10.59383]
[1743253900109,2.99048996,1861.7,1861.5,10.59383]
[1743253900309,0.26212198,1861.6,1861.5,10.59383]
[1743253900510,2.99048996,1861.7,1861.5,10.59383]
[1743253900709,0.26212198,1861.6,1861.5,10.59383]
[1743253901201,2.99048996,1861.7,1861.5,10.59383]
[1743253901401,0.26212198,1861.6,1861.5,10.59383]
[1743253901722,2.99048996,1861.7,1861.5,10.59383]
[1743253902024,2.99048996,1861.7,1861.5,5.222]
[1743253902333,0.26212198,1861.6,1861.5,5.222]
[1743253902626,2.99048996,1861.7,1861.5,5.222]
[1743253902830,0.26220096,1861.6,1861.5,5.222]
[1743253903130,2.99048996,1861.7,1861.5,5.222]
[1743253903509,0.26235891,1861.6,1861.5,5.222]
[1743253903831,0.26235891,1861.6,1861.0,0.55]
[1743253903832,3.25284887,1861.6,1861.2,6.19988]
[1743253904011,2.99048996,1861.4,1861.3,5.22]
[1743253904401,3.25230434,1861.4,1861.3,5.22]
[1743253906105,3.25230434,1861.4,1861.2,5.37284]
[1743253906305,3.25230434,1861.4,1861.2,11.75014]
[1743253907733,3.25230434,1861.4,1861.2,17.12287]
[1743253908032,0.26181438,1861.4,1861.2,11.74999]
[1743253908214,0.26181438,1861.4,1861.3,0.84022448]
[1743253908410,0.26181438,1861.4,1861.3,6.21280448]
[1743253908732,3.0,1861.7,1861.5,5.37174]
[1743253909532,5.99048996,1861.7,1861.4,5.37222]
[1743253909906,5.99048996,1861.7,1861.4,10.74439]
[1743253910342,5.99048996,1861.7,1861.5,5.372]
[1743253911648,0.26145966,1861.6,1861.4,5.37225]
[1743253911808,0.26145966,1861.6,1861.4,6.70500795]
[1743253912007,5.99048996,1861.7,1861.4,6.70500795]
[1743253912207,0.26102924,1861.5,1861.3,7.95532945]
[1743253912446,2.99048996,1861.4,1861.3,5.219]
[1743253912621,0.26067796,1861.4,1861.3,5.219]
[1743253913634,0.26067796,1861.4,1861.3,10.59158]
[1743253914311,2.99048996,1861.6,1861.3,10.59158]
[1743253914624,3.0,1861.7,1861.5,5.37188]
[1743253915315,3.0,1861.7,1861.5,10.74372]
[1743253915648,3.0,1861.7,1861.5,5.37184]
[1743253916633,5.99048996,1861.7,1861.5,5.37184]
[1743253917337,2.99048996,1861.6,1861.4,6.15878]
[1743253917745,2.99048996,1861.6,1861.4,7.35011527]
[1743253917918,2.99048996,1861.6,1861.5,5.37201]
[1743253918113,5.99048996,1861.7,1861.5,5.37201]
[1743253918557,3.0,1861.7,1861.5,5.37201]
[1743253919462,2.99048996,1861.8,1861.6,5.37161]
[1743253919711,9.5255371,1862.4,1861.8,5.37096]
[1743253919881,2.99048996,1862.1,1861.8,5.37096]
[1743253921370,2.99048996,1862.0,1861.7,11.127581]
[1743253921659,2.99048996,1861.9,1861.7,5.908581]
[1743253921842,2.99048996,1862.0,1861.8,5.8098581]
[1743253926367,5.37029,1862.1,1861.8,5.8098581]
[1743253926570,0.20108023,1861.9,1861.8,5.219]
[1743253926747,5.37029,1862.1,1861.8,5.219]
[1743253926939,0.20108023,1861.9,1861.8,5.219]
[1743253927139,13.73125996,1862.1,1861.8,5.219]
[1743253927475,0.20119883,1861.9,1861.8,5.219]
[1743253927969,8.36077996,1862.1,1861.8,5.219]
[1743253928149,0.20119883,1861.9,1861.8,5.219]
[1743253928349,8.36077996,1862.1,1861.8,5.219]
[1743253928672,0.20188091,1861.9,1861.7,5.37123]
[1743253928967,0.20188091,1861.9,1861.5,5.217]
[1743253928968,8.56332982,1861.8,1861.5,5.217]
[1743253929168,0.20152986,1861.8,1861.5,10.58893]
[1743253929340,0.20152986,1861.8,1861.6,5.37172]
[1743253929544,16.73205996,1862.0,1861.6,5.37172]
[1743253929739,0.20062464,1861.7,1861.6,5.37172]
[1743253929943,2.99048996,1861.8,1861.5,10.58893]
[1743253930237,0.20062464,1861.7,1861.5,10.58879]
[1743253930446,0.20062464,1861.7,1861.6,5.37172]
[1743253931170,3.38922505,1861.9,1861.6,5.37172]
[1743253931469,0.20062464,1861.7,1861.6,5.37172]
[1743253931671,8.76009505,1861.9,1861.5,10.589]
[1743253931851,0.20062464,1861.7,1861.5,10.589]
[1743253932168,0.20035266,1861.6,1861.5,5.217]
[1743253932367,0.20035266,1861.6,1861.3,5.37244]
[1743253932569,0.20035266,1861.6,1861.4,5.217]
[1743253932570,2.99048996,1861.6,1861.4,5.217]
[1743253932745,0.19968475,1861.5,1861.4,5.217]
[1743253933071,0.19968475,1861.5,1861.4,10.5893]
[1743253933246,0.19968475,1861.5,1861.4,12.185469]
[1743253933574,0.19968475,1861.5,1861.4,17.557649]
[1743253933970,2.99048996,1861.7,1861.4,17.557649]
[1743253934174,0.19968475,1861.5,1861.4,15.96148]
[1743253934370,2.99048996,1861.7,1861.4,15.96148]
[1743253934571,0.19968475,1861.5,1861.4,15.96148]
[1743253934778,2.99048996,1861.7,1861.4,10.58918]
[1743253934977,0.19968475,1861.5,1861.4,10.58912]
[1743253935174,0.19968475,1861.5,1861.4,12.97778]
[1743253935474,2.99048996,1861.7,1861.5,5.3719]
[1743253936348,2.99048996,1861.7,1861.4,11.38162]
[1743253938295,2.99048996,1861.5,1861.2,6.18506]
[1743253938464,2.99048996,1861.6,1861.3,5.217]
[1743253938668,2.99048996,1861.6,1861.3,10.58951]
[1743253939286,2.99048996,1861.6,1861.4,5.37228]
[1743253939484,8.36192996,1861.7,1861.3,10.58951]
[1743253940486,8.36223996,1861.6,1861.2,6.18507]
[1743253940785,5.37213,1861.5,1861.3,5.216]
[1743253940954,8.36261996,1861.5,1861.3,5.216]
[1743253941152,2.99048996,1861.5,1861.3,5.216]
[1743253941591,0.19850317,1861.4,1861.3,5.216]
[1743253943069,0.19850317,1861.4,1861.3,11.40078]
[1743253943479,0.19850317,1861.4,1861.3,13.078127]
[1743253943777,0.19850317,1861.4,1861.3,7.705547]
[1743253943959,0.19850317,1861.4,1861.3,6.0282]
[1743253944154,0.19850317,1861.4,1861.3,5.216]
[1743253946092,0.19850317,1861.4,1861.1,6.18516]
[1743253946292,0.19850317,1861.4,1861.2,5.216]
[1743253946809,2.99048996,1861.3,1860.7,0.8122]
[1743253946967,2.99048996,1861.1,1860.9,5.3737]
[1743253947363,0.19561438,1861.0,1860.9,5.3737]
[1743253947564,2.99048996,1861.2,1860.9,5.3737]
[1743253947782,0.19561438,1861.0,1860.9,5.3737]
[1743253947983,2.99048996,1861.1,1860.9,6.970051]
[1743253948195,0.19577237,1861.0,1860.9,12.186051]
[1743253949080,3.18626233,1861.0,1860.9,6.812351]
[1743253949285,3.18626233,1861.0,1860.8,5.37398]
[1743253949485,3.18626233,1861.0,1860.9,5.216]
[1743253949680,0.19577237,1861.0,1860.9,5.216]
[1743253954384,0.19577237,1861.0,1860.9,10.64347544]
[1743253954600,5.99048996,1861.3,1861.0,5.37323]
[1743253954897,7.12678096,1861.3,1861.0,5.37323]
[1743253955401,8.36337996,1861.2,1860.9,11.35403]
[1743253955703,8.36337996,1861.2,1860.9,5.9803]
[1743253956371,2.99048996,1861.1,1860.9,5.216]
[1743253956571,0.19119316,1861.1,1860.9,10.58968]
[1743253956987,0.19119316,1861.1,1860.9,5.216]
[1743253957801,3.18168312,1861.1,1860.9,5.216]
[1743253958698,2.99048996,1861.0,1860.9,5.216]
[1743253958902,8.55485312,1861.1,1860.9,5.216]
[1743253959101,0.19084156,1861.0,1860.9,5.216]
[1743253961309,0.19084156,1861.0,1860.9,10.58974]
[1743253961899,2.99048996,1861.2,1860.9,10.58974]
[1743253962096,0.19147385,1861.0,1860.9,10.58974]
[1743253962305,2.99048996,1861.2,1860.9,10.58974]
[1743253962622,4.70394556,1861.2,1860.9,10.58974]
[1743253962785,0.19179575,1861.1,1860.9,10.58974]
[1743253964110,0.19179575,1861.1,1860.9,5.216]
[1743253965923,2.99048996,1861.0,1860.9,5.216]
[1743253966298,3.18193414,1861.0,1860.8,10.58984]
[1743253968023,0.19144418,1861.0,1860.8,10.58984]
[1743253968204,0.19144418,1861.0,1860.9,5.37374]
[1743253968791,0.19144418,1861.0,1860.8,11.648924]
[1743253969318,2.96833414,1861.1,1860.8,11.648924]
[1743253969523,0.1751389,1860.9,1860.8,11.648924]
[1743253969702,2.96833414,1861.1,1860.8,11.648924]
[1743253970023,2.96833414,1861.1,1860.8,10.58994]
[1743253970188,0.1754905,1861.0,1860.8,10.58994]
[1743253971986,0.1754905,1861.0,1860.8,5.216]
[1743253972193,0.1754905,1861.0,1860.8,10.59003]
[1743253973403,0.1754905,1861.0,1860.8,15.96386]
[1743253973604,0.1754905,1861.0,1860.8,17.560246]
[1743253973808,0.1754905,1861.0,1860.9,5.37374]
[1743253974002,0.1754905,1861.0,1860.9,6.13614]
[1743253974858,0.17424438,1861.0,1860.9,11.50988]
[1743253975061,11.76178595,1861.3,1860.9,11.50988]
[1743253975214,0.17409605,1861.0,1860.9,12.48334956]
[1743253975557,8.37211,1861.5,1861.1,5.37308]
[1743253975761,2.99048996,1861.4,1861.1,5.37308]
[1743253976960,2.99048996,1861.4,1861.0,5.37317]
[1743253976961,2.99048996,1861.4,1861.2,11.35021]
[1743253977159,2.99048996,1861.4,1861.2,5.215]
[1743253978025,8.36290996,1861.4,1861.2,5.215]
[1743253978241,2.99048996,1861.3,1861.2,5.215]
[1743253978559,8.36306996,1861.3,1861.2,5.215]
[1743253979441,3.0,1861.4,1861.2,5.215]
[1743253979647,3.0,1861.4,1861.2,10.58786]
[1743253980633,3.0,1861.4,1861.2,11.35026]
[1743253981043,3.38889525,1861.5,1861.2,11.35026]
[1743253981347,0.39840529,1861.5,1861.2,11.35012]
[1743253981553,9.4656968,1861.6,1861.2,12.485132]
[1743253982349,2.99048996,1861.5,1861.3,5.37256]
[1743253983058,2.99048996,1861.5,1861.3,10.74501]
[1743253983355,1.10346684,1861.6,1861.3,10.74501]
[1743253983356,4.0939568,1861.6,1861.3,10.74501]
[1743253983524,4.4880834,1861.6,1861.3,10.74501]
[1743253983956,4.4880834,1861.6,1861.3,5.37245]
[1743253984636,4.4880834,1861.6,1861.2,12.485272]
[1743253984637,2.99048996,1861.5,1861.2,11.35016]
[1743253984838,2.99048996,1861.4,1861.2,10.58776]
[1743253986361,2.99048996,1861.3,1861.2,5.215]
[1743253986561,3.16896669,1861.3,1861.2,5.215]
[1743253986733,3.16896669,1861.3,1861.1,5.213]
[1743253986933,0.17847673,1861.3,1861.1,5.213]
[1743253987154,8.36288996,1861.4,1861.1,5.213]
[1743253987357,0.17847673,1861.3,1861.1,5.213]
[1743253987560,8.36288996,1861.4,1861.1,5.213]
[1743253987860,0.17847673,1861.3,1861.1,5.213]
[1743253988231,8.36288996,1861.4,1861.1,5.213]
[1743253988428,0.17847673,1861.3,1861.1,5.213]
[1743253988641,2.99048996,1861.3,1861.1,5.213]
[1743253988841,0.17812534,1861.2,1861.1,5.213]
[1743253989241,0.17812534,1861.2,1861.0,6.18817]
[1743253989566,0.17812534,1861.2,1861.0,11.40117]
[1743253990263,3.1686153,1861.2,1861.0,5.213]
[1743253990566,0.17812534,1861.2,1861.0,10.58635]
[1743253991063,0.17812534,1861.2,1861.0,15.9597]
[1743253991570,8.36278996,1861.4,1861.0,15.9597]
[1743253991749,0.17847673,1861.3,1861.0,15.95964]
[1743253992066,5.3723,1861.4,1861.1,5.37316]
[1743253992267,9.43722296,1861.4,1861.1,5.37316]
[1743253992465,0.17855593,1861.3,1861.1,5.37316]
[1743253992761,0.17828377,1861.2,1861.0,10.58629]
[1743253993061,2.99048996,1861.2,1861.0,5.213]
[1743253993268,0.17745704,1861.1,1861.0,5.213]
[1743253997082,0.17745704,1861.1,1861.0,10.58645]
[1743253997444,2.99048996,1861.3,1861.0,10.58645]
[1743253997670,0.17820456,1861.2,1861.0,10.58645]
[1743253997881,8.36281996,1861.4,1861.0,12.182448]
[1743253998041,0.17809078,1861.1,1861.0,10.58645]
[1743253998244,8.36281996,1861.4,1861.0,10.58645]
[1743253998447,3.16920431,1861.3,1861.0,10.58645]
[1743253998740,3.16920431,1861.3,1861.0,15.95971]
[1743253998944,0.17871435,1861.3,1861.1,6.12426]
[1743253999358,5.99048996,1861.4,1861.1,6.12426]
[1743253999562,0.17784703,1861.3,1861.2,5.37284]
[1743253999753,4.4880834,1861.6,1861.3,5.37245]
[1743253999969,0.17822336,1861.5,1861.3,5.37245]
[1743254001978,3.16871332,1861.5,1861.2,5.37284]
[1743254002455,3.16871332,1861.5,1861.3,5.37255]
[1743254003352,0.17822336,1861.5,1861.3,5.37255]
[1743254004380,0.17822336,1861.5,1861.3,5.37247]
[1743254004570,0.17822336,1861.5,1861.4,0.7512]
[1743254005576,0.17822336,1861.5,1861.4,6.1235]
[1743254005775,11.2792337,1864.8,1861.6,5.37153]
[1743254005776,10.74091,1862.1,1861.6,5.37153]
[1743254006084,3.0,1861.9,1861.6,5.37153]
[1743254006284,5.99048996,1861.9,1861.6,5.37153]
[1743254006501,0.18056867,1861.8,1861.6,5.37153]
[1743254007282,0.18056867,1861.8,1861.6,10.74306]
[1743254008601,0.18056867,1861.8,1861.7,6.12263]
[1743254008785,2.99048996,1862.1,1861.8,5.37101]
[1743254008974,0.40703403,1862.2,1862.0,5.37035]
[1743254009353,3.0,1862.3,1862.0,10.74081]
[1743254009781,2.99048996,1862.4,1861.9,5.9622]
[1743254010084,0.400895,1862.6,1862.2,6.12107]
[1743254010289,8.36884,1862.6,1862.3,5.21]
[1743254010658,5.99048996,1862.6,1862.3,5.21]
[1743254011781,11.35946996,1862.6,1862.3,5.21]
[1743254011983,3.0,1862.4,1862.3,5.21]
[1743254012793,11.36010996,1862.4,1862.0,0.59622]
[1743254013096,2.99048996,1862.2,1862.1,5.21]
[1743254014591,5.99048996,1862.4,1862.1,10.58015]
[1743254016186,5.99048996,1862.4,1862.1,15.95028]
[1743254016398,3.0,1862.5,1862.2,6.17056]
[1743254016579,0.14100247,1862.4,1862.3,5.986586]
[1743254016779,0.14124024,1862.4,1862.3,5.986586]
[1743254018099,0.14124024,1862.4,1862.3,0.617056]
[1743254019975,0.14124024,1862.4,1862.3,5.986756]
[1743254022204,3.0,1862.5,1862.4,5.36941]
[1743254022574,3.13247167,1862.5,1862.4,5.36941]
[1743254022799,3.13247167,1862.5,1862.4,0.73384305]
[1743254023202,3.13247167,1862.5,1862.4,6.10325305]
[1743254024696,0.13247167,1862.5,1862.4,6.10325305]
[1743254024903,2.99048996,1862.7,1862.5,5.36893]
[1743254025075,2.99048996,1862.7,1862.6,5.36883]
[1743254025273,2.99048996,1862.8,1862.6,5.36864]
[1743254026993,2.99048996,1862.8,1862.6,10.73733]
[1743254027172,0.05,1862.9,1862.7,5.36855]
[1743254028286,0.05,1862.9,1862.8,5.36826]
[1743254029580,0.05,1862.9,1862.7,10.57455]
[1743254029581,3.04048996,1862.9,1862.7,10.57455]
[1743254029780,3.04048996,1862.9,1862.7,15.94289]
[1743254030478,3.04048996,1862.9,1862.8,5.36826]
[1743254031613,3.16529655,1862.9,1862.8,5.36826]
[1743254035719,0.17480659,1862.9,1862.8,6.96252]
[1743254039616,3.16529655,1862.9,1862.8,6.96252]
[1743254039924,3.16529655,1862.9,1862.8,5.36826]
[1743254040130,3.16529655,1862.9,1862.7,10.57434]
[1743254040309,2.99048996,1862.8,1862.7,10.57434]
[1743254040626,0.05,1862.9,1862.8,5.36826]
[1743254040833,3.04048996,1862.9,1862.8,5.36826]
[1743254041123,3.04048996,1862.9,1862.7,10.57434]
[1743254041622,3.04048996,1862.9,1862.8,5.36826]
[1743254042428,3.04048996,1862.9,1862.5,6.18714]
[1743254042429,8.72361233,1862.9,1862.5,6.18714]
[1743254042628,2.99048996,1862.6,1862.5,5.36904]
[1743254042833,2.99048996,1862.8,1862.6,5.36878]
[1743254043236,2.99048996,1862.8,1862.6,5.36866]
[1743254045013,2.99048996,1862.8,1862.5,10.57204]
[1743254045216,2.99048996,1862.7,1862.5,15.94095]
[1743254046231,8.41798,1862.9,1862.6,6.15169]
[1743254046232,6.04048996,1862.9,1862.6,6.15169]
[1743254046403,6.04048996,1862.9,1862.7,5.36855]
[1743254046732,0.12540976,1862.8,1862.6,6.15169]
[1743254047097,3.11589972,1862.8,1862.6,6.15169]
[1743254047303,3.11589972,1862.8,1862.6,5.36859]
[1743254049211,3.11589972,1862.8,1862.6,10.73729]
[1743254049412,3.11589972,1862.8,1862.6,5.36859]
[1743254049830,0.12540976,1862.8,1862.6,5.36859]
[1743254050047,3.11589972,1862.8,1862.6,5.36859]
[1743254050248,3.11589972,1862.8,1862.5,10.5721]
[1743254050817,3.11589972,1862.8,1862.5,5.203]
[1743254051018,0.12540976,1862.8,1862.6,5.36864]
[1743254054248,0.12540976,1862.8,1862.5,15.94122]
[1743254054653,0.12540976,1862.8,1862.5,10.57211]